[Event "Titled Tuesday Blitz August 09 Early 2022"]
[White "Perez Rodriguez, Jennifer"]
[Black "Belozerov, Andrei"]
[WhiteFideId "3507831"]
[BlackFideId "4120213"]
[WhiteElo "2170"]
[BlackElo "2320"]
[Result "1-0"]
[Round "04"]
[TimeControl "180+1"]
[Date "2022.08.09"]
[WhiteClock "0:00:25"]
[BlackClock "0:00:20"]

1. e4 {[%clk 0:03:00]}  c5 {[%clk 0:02:56]} 2. c3 {[%clk 0:03:00]}  Nf6 {[%clk 0:02:55]} 3. e5 {[%clk 0:02:59]}  Nd5 {[%clk 0:02:55]} 4. Nf3 {[%clk 0:03:00]}  Nc6 {[%clk 0:02:54]} 5. Bc4 {[%clk 0:02:59]}  Nb6 {[%clk 0:02:53]} 6. Bb3 {[%clk 0:02:59]}  g6 {[%clk 0:02:52]} 7. O-O {[%clk 0:02:51]}  Bg7 {[%clk 0:02:52]} 8. Re1 {[%clk 0:02:52]}  O-O {[%clk 0:02:44]} 9. a4 {[%clk 0:02:39]}  c4 {[%clk 0:02:15]} 10. Bc2 {[%clk 0:02:36]}  d6 {[%clk 0:02:14]} 11. exd6 {[%clk 0:02:34]}  Qxd6 {[%clk 0:02:13]} 12. b3 {[%clk 0:02:30]}  Be6 {[%clk 0:01:59]} 13. Na3 {[%clk 0:02:12]}  Rac8 {[%clk 0:01:49]} 14. a5 {[%clk 0:01:51]}  cxb3 {[%clk 0:01:42]} 15. axb6 {[%clk 0:01:44]}  bxc2 {[%clk 0:01:41]} 16. Qxc2 {[%clk 0:01:45]}  axb6 {[%clk 0:01:38]} 17. Nb5 {[%clk 0:01:38]}  Qd7 {[%clk 0:01:37]} 18. Ba3 {[%clk 0:01:21]}  Bf5 {[%clk 0:01:28]} 19. Qb3 {[%clk 0:01:17]}  Bd3 {[%clk 0:01:27]} 20. Nbd4 {[%clk 0:01:11]}  Nxd4 {[%clk 0:01:25]} 21. cxd4 {[%clk 0:01:11]}  Bc4 {[%clk 0:01:19]} 22. Qxb6 {[%clk 0:01:11]}  Rc6 {[%clk 0:01:19]} 23. Qb4 {[%clk 0:01:05]}  Rc7 {[%clk 0:00:59]} 24. Rxe7 {[%clk 0:00:54]}  Qxe7 {[%clk 0:00:58]} 25. Qxe7 {[%clk 0:00:54]}  Rxe7 {[%clk 0:00:58]} 26. Bxe7 {[%clk 0:00:55]}  Re8 {[%clk 0:00:58]} 27. Bc5 {[%clk 0:00:53]}  Bd5 {[%clk 0:00:56]} 28. Ne5 {[%clk 0:00:46]}  f6 {[%clk 0:00:53]} 29. Nd3 {[%clk 0:00:37]}  Bh6 {[%clk 0:00:50]} 30. Nb4 {[%clk 0:00:35]}  Rd8 {[%clk 0:00:37]} 31. d3 {[%clk 0:00:31]}  Bd2 {[%clk 0:00:33]} 32. Nxd5 {[%clk 0:00:30]}  Rxd5 {[%clk 0:00:32]} 33. Ra7 {[%clk 0:00:28]}  Rd7 {[%clk 0:00:27]} 34. Kf1 {[%clk 0:00:27]}  Kf7 {[%clk 0:00:21]} 35. Ke2 {[%clk 0:00:27]}  Bf4 {[%clk 0:00:20]} 36. g3 {[%clk 0:00:25]} 1-0


[Site "https://www.chess.com"]

[Event "Titled Tuesday Blitz August 09 Early 2022"]
[White "Piesik, Piotr"]
[Black "Kashefi, Amir Hosein"]
[WhiteFideId "1136194"]
[BlackFideId "12557935"]
[WhiteElo "2221"]
[BlackElo "1962"]
[Result "0-1"]
[Round "04"]
[TimeControl "180+1"]
[Date "2022.08.09"]
[WhiteClock "0:02:12"]
[BlackClock "0:01:39"]

1. Nf3 {[%clk 0:02:52]}  d5 {[%clk 0:02:59]} 2. g3 {[%clk 0:02:53]}  c6 {[%clk 0:03:00]} 3. Bg2 {[%clk 0:02:53]}  Nf6 {[%clk 0:03:01]} 4. O-O {[%clk 0:02:54]}  Bf5 {[%clk 0:03:01]} 5. d3 {[%clk 0:02:54]}  e6 {[%clk 0:02:59]} 6. Nbd2 {[%clk 0:02:55]}  Be7 {[%clk 0:02:59]} 7. Qe1 {[%clk 0:02:55]}  O-O {[%clk 0:02:59]} 8. e4 {[%clk 0:02:55]}  dxe4 {[%clk 0:02:56]} 9. dxe4 {[%clk 0:02:56]}  Bg6 {[%clk 0:02:57]} 10. Ne5 {[%clk 0:02:56]}  Nbd7 {[%clk 0:02:56]} 11. Nxg6 {[%clk 0:02:57]}  hxg6 {[%clk 0:02:57]} 12. Qe2 {[%clk 0:02:57]}  Qc7 {[%clk 0:02:50]} 13. a4 {[%clk 0:02:57]}  Rad8 {[%clk 0:02:49]} 14. Nc4 {[%clk 0:02:55]}  e5 {[%clk 0:02:40]} 15. Be3 {[%clk 0:02:55]}  Bc5 {[%clk 0:02:40]} 16. a5 {[%clk 0:02:51]}  b5 {[%clk 0:02:38]} 17. axb6 {[%clk 0:02:50]}  axb6 {[%clk 0:02:39]} 18. Ra6 {[%clk 0:02:38]}  b5 {[%clk 0:02:32]} 19. Nd2 {[%clk 0:02:37]}  Bxe3 {[%clk 0:02:26]} 20. Qxe3 {[%clk 0:02:38]}  Ra8 {[%clk 0:02:25]} 21. Rfa1 {[%clk 0:02:38]}  Rxa6 {[%clk 0:02:25]} 22. Rxa6 {[%clk 0:02:39]}  Rd8 {[%clk 0:02:17]} 23. Bh3 {[%clk 0:02:34]}  Qd6 {[%clk 0:02:11]} 24. Kg2 {[%clk 0:02:26]}  Nc5 {[%clk 0:02:04]} 25. Ra7 {[%clk 0:02:22]}  Qxd2 {[%clk 0:02:01]} 26. Qxc5 {[%clk 0:02:22]}  Nxe4 {[%clk 0:02:02]} 27. Qb6 {[%clk 0:02:12]}  c5 {[%clk 0:01:39]} 0-1


[Site "https://www.chess.com"]

[Event "Titled Tuesday Blitz August 09 Early 2022"]
[White "Ponce Cano, Adrian"]
[Black "Zou, Chen"]
[WhiteFideId "22296913"]
[BlackFideId "8610959"]
[WhiteElo "2261"]
[BlackElo "2276"]
[Result "0-1"]
[Round "04"]
[TimeControl "180+1"]
[Date "2022.08.09"]
[WhiteClock "0:00:06"]
[BlackClock "0:00:17"]

1. e4 {[%clk 0:00:34]}  e5 {[%clk 0:02:57]} 2. Nf3 {[%clk 0:00:34]}  Nc6 {[%clk 0:02:57]} 3. Nc3 {[%clk 0:00:35]}  Nf6 {[%clk 0:02:56]} 4. Bb5 {[%clk 0:00:35]}  Bb4 {[%clk 0:02:55]} 5. O-O {[%clk 0:00:36]}  d6 {[%clk 0:02:50]} 6. d3 {[%clk 0:00:36]}  O-O {[%clk 0:02:49]} 7. Bxc6 {[%clk 0:00:36]}  bxc6 {[%clk 0:02:49]} 8. Ne2 {[%clk 0:00:37]}  Nd7 {[%clk 0:02:45]} 9. c3 {[%clk 0:00:37]}  Ba5 {[%clk 0:02:45]} 10. a4 {[%clk 0:00:36]}  c5 {[%clk 0:02:42]} 11. h3 {[%clk 0:00:36]}  c6 {[%clk 0:02:39]} 12. c4 {[%clk 0:00:33]}  Re8 {[%clk 0:02:35]} 13. Ng3 {[%clk 0:00:34]}  Nf8 {[%clk 0:02:35]} 14. Bd2 {[%clk 0:00:34]}  Bc7 {[%clk 0:02:35]} 15. Bg5 {[%clk 0:00:34]}  f6 {[%clk 0:02:35]} 16. Bd2 {[%clk 0:00:34]}  Rb8 {[%clk 0:02:35]} 17. b3 {[%clk 0:00:34]}  Ne6 {[%clk 0:02:35]} 18. Rb1 {[%clk 0:00:34]}  Kh8 {[%clk 0:02:33]} 19. Nf5 {[%clk 0:00:33]}  g6 {[%clk 0:02:33]} 20. Ng3 {[%clk 0:00:32]}  Rg8 {[%clk 0:02:31]} 21. Bc3 {[%clk 0:00:32]}  Qd7 {[%clk 0:02:29]} 22. Qd2 {[%clk 0:00:32]}  Qe7 {[%clk 0:02:28]} 23. Qh6 {[%clk 0:00:31]}  Qg7 {[%clk 0:02:27]} 24. Qe3 {[%clk 0:00:31]}  Bd7 {[%clk 0:02:23]} 25. Kh1 {[%clk 0:00:32]}  Qf7 {[%clk 0:02:23]} 26. b4 {[%clk 0:00:32]}  cxb4 {[%clk 0:02:21]} 27. Rxb4 {[%clk 0:00:31]}  Rxb4 {[%clk 0:02:21]} 28. Bxb4 {[%clk 0:00:32]}  Bb6 {[%clk 0:02:21]} 29. Qd2 {[%clk 0:00:31]}  c5 {[%clk 0:02:21]} 30. Ba5 {[%clk 0:00:31]}  Bxa4 {[%clk 0:02:18]} 31. Ra1 {[%clk 0:00:31]}  Bc6 {[%clk 0:02:15]} 32. Bxb6 {[%clk 0:00:30]}  axb6 {[%clk 0:02:16]} 33. Ra6 {[%clk 0:00:30]}  Rb8 {[%clk 0:02:16]} 34. Qb2 {[%clk 0:00:30]}  Qb7 {[%clk 0:02:16]} 35. Qa3 {[%clk 0:00:30]}  Ra8 {[%clk 0:02:16]} 36. Rxa8+ {[%clk 0:00:31]}  Qxa8 {[%clk 0:02:17]} 37. Qb2 {[%clk 0:00:31]}  Qa6 {[%clk 0:02:15]} 38. Ne2 {[%clk 0:00:31]}  Kg7 {[%clk 0:02:16]} 39. Nc3 {[%clk 0:00:31]}  Nf4 {[%clk 0:02:13]} 40. Qc2 {[%clk 0:00:29]}  b5 {[%clk 0:02:08]} 41. Nd2 {[%clk 0:00:29]}  b4 {[%clk 0:02:05]} 42. Nd5 {[%clk 0:00:29]}  Nxd5 {[%clk 0:02:06]} 43. exd5 {[%clk 0:00:30]}  Bd7 {[%clk 0:02:03]} 44. Kh2 {[%clk 0:00:28]}  Qa3 {[%clk 0:02:00]} 45. f4 {[%clk 0:00:27]}  Bf5 {[%clk 0:01:54]} 46. fxe5 {[%clk 0:00:26]}  fxe5 {[%clk 0:01:52]} 47. Nb3 {[%clk 0:00:23]}  Bd7 {[%clk 0:01:53]} 48. Nc1 {[%clk 0:00:22]}  h6 {[%clk 0:01:11]} 49. h4 {[%clk 0:00:20]}  Ba4 {[%clk 0:01:06]} 50. Qd2 {[%clk 0:00:19]}  Qc3 {[%clk 0:01:07]} 51. Qe3 {[%clk 0:00:18]}  Qd4 {[%clk 0:01:04]} 52. Qg3 {[%clk 0:00:19]}  b3 {[%clk 0:00:56]} 53. Ne2 {[%clk 0:00:17]}  Qa1 {[%clk 0:00:45]} 54. h5 {[%clk 0:00:17]}  Be8 {[%clk 0:00:42]} 55. hxg6 {[%clk 0:00:16]}  b2 {[%clk 0:00:40]} 56. Qh4 {[%clk 0:00:08]}  Qa7 {[%clk 0:00:36]} 57. Ng3 {[%clk 0:00:07]}  Bxg6 {[%clk 0:00:34]} 58. Qg4 {[%clk 0:00:06]}  Kh7 {[%clk 0:00:21]} 59. Qd1 {[%clk 0:00:05]}  Qb7 {[%clk 0:00:20]} 60. Qb1 {[%clk 0:00:05]}  h5 {[%clk 0:00:20]} 61. Kh3 {[%clk 0:00:05]}  Qd7+ {[%clk 0:00:20]} 62. Kh2 {[%clk 0:00:06]}  h4 {[%clk 0:00:20]} 63. Nf1 {[%clk 0:00:05]}  Qb7 {[%clk 0:00:20]} 64. Ne3 {[%clk 0:00:05]}  Kg7 {[%clk 0:00:19]} 65. Qa1 {[%clk 0:00:05]}  bxa1=Q {[%clk 0:00:19]} 66. Ng4 {[%clk 0:00:06]}  Qbb1 {[%clk 0:00:17]} 0-1


[Site "https://www.chess.com"]

[Event "Titled Tuesday Blitz August 09 Early 2022"]
[White "Pranav Anand"]
[Black "Djokic, Mihailo"]
[WhiteFideId "46626786"]
[BlackFideId "976440"]
[WhiteElo "2856"]
[BlackElo "2688"]
[Result "1-0"]
[Round "04"]
[TimeControl "180+1"]
[Date "2022.08.09"]
[WhiteClock "0:02:13"]
[BlackClock "0:00:38"]

1. Nf3 {[%clk 0:03:00]}  Nf6 {[%clk 0:02:11]} 2. g3 {[%clk 0:03:01]}  g6 {[%clk 0:02:11]} 3. Bg2 {[%clk 0:03:01]}  Bg7 {[%clk 0:02:12]} 4. O-O {[%clk 0:03:01]}  d6 {[%clk 0:02:12]} 5. c4 {[%clk 0:03:02]}  O-O {[%clk 0:02:13]} 6. d3 {[%clk 0:03:03]}  e5 {[%clk 0:02:13]} 7. Nc3 {[%clk 0:03:04]}  Nc6 {[%clk 0:02:14]} 8. Bg5 {[%clk 0:03:04]}  h6 {[%clk 0:02:09]} 9. Bxf6 {[%clk 0:03:04]}  Bxf6 {[%clk 0:02:10]} 10. Rb1 {[%clk 0:03:05]}  a5 {[%clk 0:02:10]} 11. a3 {[%clk 0:03:05]}  Bg7 {[%clk 0:02:11]} 12. Nd2 {[%clk 0:03:05]}  Re8 {[%clk 0:02:11]} 13. b4 {[%clk 0:03:05]}  axb4 {[%clk 0:02:12]} 14. axb4 {[%clk 0:03:06]}  Nd4 {[%clk 0:02:12]} 15. b5 {[%clk 0:03:01]}  Ne6 {[%clk 0:02:02]} 16. e3 {[%clk 0:02:57]}  Nc5 {[%clk 0:01:52]} 17. Qc2 {[%clk 0:02:57]}  Bf5 {[%clk 0:01:51]} 18. Nde4 {[%clk 0:02:57]}  Nxe4 {[%clk 0:01:51]} 19. Nxe4 {[%clk 0:02:58]}  b6 {[%clk 0:01:37]} 20. Nc3 {[%clk 0:02:53]}  Ra5 {[%clk 0:01:36]} 21. Nd5 {[%clk 0:02:50]}  Be6 {[%clk 0:01:35]} 22. Nb4 {[%clk 0:02:50]}  Qg5 {[%clk 0:01:29]} 23. Nc6 {[%clk 0:02:46]}  Ra3 {[%clk 0:01:29]} 24. Nb4 {[%clk 0:02:37]}  h5 {[%clk 0:01:21]} 25. h4 {[%clk 0:02:37]}  Qf5 {[%clk 0:01:18]} 26. Ra1 {[%clk 0:02:35]}  Rxa1 {[%clk 0:01:17]} 27. Rxa1 {[%clk 0:02:36]}  e4 {[%clk 0:01:09]} 28. Bxe4 {[%clk 0:02:30]}  Qc5 {[%clk 0:01:01]} 29. Rb1 {[%clk 0:02:26]}  Bxc4 {[%clk 0:00:59]} 30. dxc4 {[%clk 0:02:25]}  Bh6 {[%clk 0:00:52]} 31. Bc6 {[%clk 0:02:17]}  Re7 {[%clk 0:00:38]} 32. Nd5 {[%clk 0:02:14]}  Re6 {[%clk 0:00:38]} 33. Nxc7 {[%clk 0:02:13]} 1-0


[Site "https://www.chess.com"]

[Event "Titled Tuesday Blitz August 09 Early 2022"]
[White "Ramirez Vido, Robert Yorisan"]
[Black "Boyer, Mahel"]
[WhiteFideId "3513823"]
[BlackFideId "45102422"]
[WhiteElo "2413"]
[BlackElo "2454"]
[Result "0-1"]
[Round "04"]
[TimeControl "180+1"]
[Date "2022.08.09"]
[WhiteClock "0:00:07"]
[BlackClock "0:00:11"]

1. f4 {[%clk 0:02:57]}  Nh6 {[%clk 0:02:58]} 2. Nf3 {[%clk 0:02:56]}  d5 {[%clk 0:02:55]} 3. e3 {[%clk 0:02:51]}  g6 {[%clk 0:02:44]} 4. Be2 {[%clk 0:02:50]}  Bg7 {[%clk 0:02:44]} 5. O-O {[%clk 0:02:51]}  O-O {[%clk 0:02:45]} 6. d3 {[%clk 0:02:50]}  c6 {[%clk 0:02:40]} 7. Nc3 {[%clk 0:02:49]}  Nf5 {[%clk 0:02:38]} 8. e4 {[%clk 0:02:36]}  dxe4 {[%clk 0:02:32]} 9. dxe4 {[%clk 0:02:37]}  Qb6+ {[%clk 0:02:31]} 10. Kh1 {[%clk 0:02:36]}  Ne3 {[%clk 0:02:06]} 11. Bxe3 {[%clk 0:02:35]}  Qxe3 {[%clk 0:02:07]} 12. Qd2 {[%clk 0:02:33]}  Qxd2 {[%clk 0:02:04]} 13. Nxd2 {[%clk 0:02:34]}  Rd8 {[%clk 0:01:51]} 14. Rad1 {[%clk 0:02:33]}  Na6 {[%clk 0:01:28]} 15. Bxa6 {[%clk 0:02:29]}  bxa6 {[%clk 0:01:29]} 16. Nb3 {[%clk 0:02:25]}  Be6 {[%clk 0:01:20]} 17. e5 {[%clk 0:02:16]}  f6 {[%clk 0:01:13]} 18. exf6 {[%clk 0:02:16]}  exf6 {[%clk 0:01:10]} 19. Nc5 {[%clk 0:02:01]}  Bf5 {[%clk 0:01:08]} 20. N3e4 {[%clk 0:01:55]}  Rd5 {[%clk 0:01:04]} 21. c3 {[%clk 0:01:45]}  Rad8 {[%clk 0:00:40]} 22. Rxd5 {[%clk 0:01:34]}  Rxd5 {[%clk 0:00:39]} 23. h3 {[%clk 0:01:31]}  a5 {[%clk 0:00:32]} 24. g4 {[%clk 0:01:25]}  Bxe4+ {[%clk 0:00:32]} 25. Nxe4 {[%clk 0:01:25]}  f5 {[%clk 0:00:33]} 26. gxf5 {[%clk 0:01:14]}  gxf5 {[%clk 0:00:32]} 27. Ng3 {[%clk 0:01:10]}  Kf7 {[%clk 0:00:27]} 28. Rf2 {[%clk 0:01:08]}  a4 {[%clk 0:00:27]} 29. a3 {[%clk 0:01:00]}  Kg6 {[%clk 0:00:21]} 30. Rg2 {[%clk 0:00:53]}  Bh6 {[%clk 0:00:17]} 31. Rf2 {[%clk 0:00:35]}  Rd3 {[%clk 0:00:16]} 32. Kg2 {[%clk 0:00:34]}  Bf8 {[%clk 0:00:13]} 33. Ne2 {[%clk 0:00:33]}  Bc5 {[%clk 0:00:12]} 34. Rf3 {[%clk 0:00:31]}  Rd2 {[%clk 0:00:13]} 35. Kf1 {[%clk 0:00:31]}  Rd1+ {[%clk 0:00:13]} 36. Kg2 {[%clk 0:00:31]}  Rd2 {[%clk 0:00:14]} 37. Kf1 {[%clk 0:00:31]}  Rxb2 {[%clk 0:00:15]} 38. Rg3+ {[%clk 0:00:30]}  Kf6 {[%clk 0:00:15]} 39. Rg8 {[%clk 0:00:26]}  Bxa3 {[%clk 0:00:14]} 40. Rc8 {[%clk 0:00:22]}  Rb6 {[%clk 0:00:11]} 41. Nd4 {[%clk 0:00:22]}  Bc5 {[%clk 0:00:10]} 42. Nc2 {[%clk 0:00:19]}  a3 {[%clk 0:00:10]} 43. Rd8 {[%clk 0:00:18]}  a2 {[%clk 0:00:10]} 44. Rd1 {[%clk 0:00:18]}  Rb1 {[%clk 0:00:10]} 45. Ke2 {[%clk 0:00:17]}  Ke6 {[%clk 0:00:11]} 46. Kd2 {[%clk 0:00:07]}  Kd5 {[%clk 0:00:11]} 0-1


[Site "https://www.chess.com"]

[Event "Titled Tuesday Blitz August 09 Early 2022"]
[White "Rosenberg, Evan S"]
[Black "Hartikainen, Jarmo"]
[WhiteFideId "2019299"]
[BlackFideId "503134"]
[WhiteElo "2428"]
[BlackElo "2146"]
[Result "1-0"]
[Round "04"]
[TimeControl "180+1"]
[Date "2022.08.09"]
[WhiteClock "0:00:09"]
[BlackClock "0:00:20"]

1. e4 {[%clk 0:02:59]}  c5 {[%clk 0:02:59]} 2. Nc3 {[%clk 0:02:59]}  Nc6 {[%clk 0:02:57]} 3. f4 {[%clk 0:02:59]}  e6 {[%clk 0:02:56]} 4. Nf3 {[%clk 0:02:51]}  d5 {[%clk 0:02:56]} 5. Bb5 {[%clk 0:02:48]}  Be7 {[%clk 0:02:54]} 6. Ne5 {[%clk 0:02:37]}  Bd7 {[%clk 0:02:40]} 7. Nxd7 {[%clk 0:02:32]}  Qxd7 {[%clk 0:02:39]} 8. exd5 {[%clk 0:02:14]}  exd5 {[%clk 0:02:38]} 9. O-O {[%clk 0:02:04]}  Nf6 {[%clk 0:02:37]} 10. d3 {[%clk 0:02:03]}  O-O {[%clk 0:02:36]} 11. Re1 {[%clk 0:01:59]}  Rfe8 {[%clk 0:02:34]} 12. Bd2 {[%clk 0:01:54]}  a6 {[%clk 0:02:20]} 13. Bxc6 {[%clk 0:01:51]}  Qxc6 {[%clk 0:02:21]} 14. Qf3 {[%clk 0:01:51]}  b5 {[%clk 0:02:06]} 15. Re5 {[%clk 0:01:47]}  Rad8 {[%clk 0:02:02]} 16. Rae1 {[%clk 0:01:21]}  Qd7 {[%clk 0:00:39]} 17. h3 {[%clk 0:01:15]}  b4 {[%clk 0:00:39]} 18. Nd1 {[%clk 0:01:11]}  Bf8 {[%clk 0:00:39]} 19. Nf2 {[%clk 0:01:08]}  Bd6 {[%clk 0:00:39]} 20. Rxe8+ {[%clk 0:01:07]}  Rxe8 {[%clk 0:00:40]} 21. Rxe8+ {[%clk 0:00:57]}  Qxe8 {[%clk 0:00:40]} 22. g4 {[%clk 0:00:58]}  Qe6 {[%clk 0:00:30]} 23. g5 {[%clk 0:00:54]}  Nd7 {[%clk 0:00:31]} 24. Ng4 {[%clk 0:00:31]}  a5 {[%clk 0:00:30]} 25. c3 {[%clk 0:00:29]}  g6 {[%clk 0:00:25]} 26. a3 {[%clk 0:00:23]}  bxa3 {[%clk 0:00:24]} 27. bxa3 {[%clk 0:00:23]}  f5 {[%clk 0:00:23]} 28. gxf6 {[%clk 0:00:22]}  Nxf6 {[%clk 0:00:23]} 29. Nxf6+ {[%clk 0:00:21]}  Qxf6 {[%clk 0:00:23]} 30. Qxd5+ {[%clk 0:00:22]}  Kg7 {[%clk 0:00:24]} 31. Qb7+ {[%clk 0:00:17]}  Qf7 {[%clk 0:00:20]} 32. Qxf7+ {[%clk 0:00:14]}  Kxf7 {[%clk 0:00:21]} 33. Kf2 {[%clk 0:00:14]}  Ke6 {[%clk 0:00:21]} 34. c4 {[%clk 0:00:14]}  Kf5 {[%clk 0:00:21]} 35. Kf3 {[%clk 0:00:14]}  h6 {[%clk 0:00:21]} 36. Bxa5 {[%clk 0:00:13]}  Bxf4 {[%clk 0:00:20]} 37. Bb6 {[%clk 0:00:12]}  Bd6 {[%clk 0:00:19]} 38. a4 {[%clk 0:00:12]}  Ke5 {[%clk 0:00:19]} 39. a5 {[%clk 0:00:10]}  Kd4 {[%clk 0:00:19]} 40. a6 {[%clk 0:00:10]}  Bb8 {[%clk 0:00:20]} 41. Ke2 {[%clk 0:00:09]}  Bc7 {[%clk 0:00:20]} 42. Bxc7 {[%clk 0:00:09]} 1-0


[Site "https://www.chess.com"]

[Event "Titled Tuesday Blitz August 09 Early 2022"]
[White "Rostomyan, Mikayel"]
[Black "Gil Alba, Hector Luis"]
[WhiteFideId "13313754"]
[BlackFideId "3504670"]
[WhiteElo "1426"]
[BlackElo "2331"]
[Result "0-1"]
[Round "04"]
[TimeControl "180+1"]
[Date "2022.08.09"]
[WhiteClock "0:00:21"]
[BlackClock "0:00:19"]

1. d4 {[%clk 0:03:00]}  Nf6 {[%clk 0:02:58]} 2. Nf3 {[%clk 0:03:00]}  e6 {[%clk 0:02:57]} 3. c4 {[%clk 0:02:59]}  Bb4+ {[%clk 0:02:56]} 4. Bd2 {[%clk 0:02:59]}  Bxd2+ {[%clk 0:02:55]} 5. Qxd2 {[%clk 0:02:56]}  d5 {[%clk 0:02:55]} 6. Nc3 {[%clk 0:02:55]}  O-O {[%clk 0:02:54]} 7. e3 {[%clk 0:02:55]}  Ne4 {[%clk 0:02:50]} 8. Nxe4 {[%clk 0:02:55]}  dxe4 {[%clk 0:02:50]} 9. Ng1 {[%clk 0:02:54]}  Nd7 {[%clk 0:02:47]} 10. g3 {[%clk 0:02:52]}  b6 {[%clk 0:02:47]} 11. Bg2 {[%clk 0:02:51]}  Bb7 {[%clk 0:02:46]} 12. Ne2 {[%clk 0:02:51]}  e5 {[%clk 0:02:43]} 13. O-O {[%clk 0:02:40]}  f5 {[%clk 0:02:42]} 14. b4 {[%clk 0:02:33]}  exd4 {[%clk 0:02:40]} 15. Nxd4 {[%clk 0:02:33]}  Ne5 {[%clk 0:02:37]} 16. Qc3 {[%clk 0:02:30]}  Qf6 {[%clk 0:02:27]} 17. c5 {[%clk 0:02:25]}  Bd5 {[%clk 0:02:21]} 18. a4 {[%clk 0:02:08]}  c6 {[%clk 0:02:09]} 19. Rad1 {[%clk 0:02:02]}  Kh8 {[%clk 0:01:52]} 20. Kh1 {[%clk 0:02:00]}  Nf3 {[%clk 0:01:36]} 21. Ne2 {[%clk 0:01:42]}  Qxc3 {[%clk 0:01:16]} 22. Nxc3 {[%clk 0:01:42]}  Bc4 {[%clk 0:01:16]} 23. Bxf3 {[%clk 0:01:01]}  Bxf1 {[%clk 0:01:14]} 24. Bxe4 {[%clk 0:00:59]}  fxe4 {[%clk 0:01:09]} 25. Rxf1 {[%clk 0:00:58]}  bxc5 {[%clk 0:01:09]} 26. bxc5 {[%clk 0:00:57]}  Rae8 {[%clk 0:01:08]} 27. Kg2 {[%clk 0:00:57]}  Rf5 {[%clk 0:01:06]} 28. Rd1 {[%clk 0:00:54]}  h6 {[%clk 0:01:03]} 29. Rd4 {[%clk 0:00:50]}  Rxc5 {[%clk 0:01:02]} 30. Nxe4 {[%clk 0:00:50]}  Rc2 {[%clk 0:01:02]} 31. g4 {[%clk 0:00:43]}  c5 {[%clk 0:01:00]} 32. Rd2 {[%clk 0:00:31]}  Rxd2 {[%clk 0:00:52]} 33. Nxd2 {[%clk 0:00:32]}  Rb8 {[%clk 0:00:46]} 34. e4 {[%clk 0:00:31]}  Rb4 {[%clk 0:00:45]} 35. Kf3 {[%clk 0:00:31]}  c4 {[%clk 0:00:45]} 36. Ke3 {[%clk 0:00:28]}  c3 {[%clk 0:00:44]} 37. Nf3 {[%clk 0:00:29]}  c2 {[%clk 0:00:35]} 38. Kd2 {[%clk 0:00:29]}  Rxe4 {[%clk 0:00:33]} 39. Kxc2 {[%clk 0:00:29]}  Rxa4 {[%clk 0:00:31]} 40. Ne5 {[%clk 0:00:28]}  Re4 {[%clk 0:00:28]} 41. f4 {[%clk 0:00:28]}  g5 {[%clk 0:00:20]} 42. Kd3 {[%clk 0:00:20]}  Rxf4 {[%clk 0:00:19]} 43. Ng6+ {[%clk 0:00:19]}  Kg7 {[%clk 0:00:19]} 44. Nxf4 {[%clk 0:00:18]}  gxf4 {[%clk 0:00:19]} 45. Ke4 {[%clk 0:00:19]}  a5 {[%clk 0:00:19]} 46. Kxf4 {[%clk 0:00:20]}  a4 {[%clk 0:00:19]} 47. Ke4 {[%clk 0:00:21]}  a3 {[%clk 0:00:19]} 48. Kd3 {[%clk 0:00:21]}  a2 {[%clk 0:00:19]} 0-1


[Site "https://www.chess.com"]

[Event "Titled Tuesday Blitz August 09 Early 2022"]
[White "Sailer, Mike"]
[Black "Zhigalko, Sergei"]
[WhiteFideId "2012901"]
[BlackFideId "13502956"]
[WhiteElo "2109"]
[BlackElo "2662"]
[Result "0-1"]
[Round "04"]
[TimeControl "180+1"]
[Date "2022.08.09"]
[WhiteClock "0:00:20"]
[BlackClock "0:00:49"]

1. d4 {[%clk 0:03:00]}  Nf6 {[%clk 0:03:00]} 2. Nf3 {[%clk 0:02:57]}  e6 {[%clk 0:03:00]} 3. Bf4 {[%clk 0:02:57]}  b6 {[%clk 0:02:59]} 4. e3 {[%clk 0:02:57]}  Bb7 {[%clk 0:02:59]} 5. Be2 {[%clk 0:02:58]}  Nh5 {[%clk 0:02:59]} 6. Bg5 {[%clk 0:02:57]}  Be7 {[%clk 0:03:00]} 7. Bxe7 {[%clk 0:02:58]}  Qxe7 {[%clk 0:03:01]} 8. a3 {[%clk 0:02:57]}  O-O {[%clk 0:03:01]} 9. c4 {[%clk 0:02:57]}  f5 {[%clk 0:03:01]} 10. Nc3 {[%clk 0:02:57]}  d6 {[%clk 0:03:01]} 11. b4 {[%clk 0:02:54]}  Nd7 {[%clk 0:03:01]} 12. Rc1 {[%clk 0:02:53]}  c5 {[%clk 0:02:53]} 13. dxc5 {[%clk 0:02:45]}  dxc5 {[%clk 0:02:48]} 14. Qb3 {[%clk 0:02:30]}  f4 {[%clk 0:02:34]} 15. O-O {[%clk 0:02:21]}  Rad8 {[%clk 0:02:26]} 16. Rcd1 {[%clk 0:02:07]}  fxe3 {[%clk 0:02:21]} 17. fxe3 {[%clk 0:02:07]}  Nhf6 {[%clk 0:02:21]} 18. Nb5 {[%clk 0:01:59]}  a6 {[%clk 0:02:08]} 19. Nd6 {[%clk 0:01:35]}  Ba8 {[%clk 0:01:25]} 20. Rd2 {[%clk 0:01:35]}  Bxf3 {[%clk 0:01:12]} 21. Bxf3 {[%clk 0:01:28]}  Ne5 {[%clk 0:01:11]} 22. bxc5 {[%clk 0:01:11]}  bxc5 {[%clk 0:01:09]} 23. Rfd1 {[%clk 0:01:01]}  Nfg4 {[%clk 0:00:57]} 24. Bxg4 {[%clk 0:00:54]}  Nxg4 {[%clk 0:00:57]} 25. h3 {[%clk 0:00:45]}  Ne5 {[%clk 0:00:56]} 26. Ne4 {[%clk 0:00:36]}  Rxd2 {[%clk 0:00:52]} 27. Rxd2 {[%clk 0:00:37]}  Qh4 {[%clk 0:00:53]} 28. Nd6 {[%clk 0:00:22]}  Qe1+ {[%clk 0:00:50]} 29. Kh2 {[%clk 0:00:20]}  Qxd2 {[%clk 0:00:49]} 0-1


[Site "https://www.chess.com"]